[Event "FRA-ch Open A-D 2018"]
[Site "Nimes"]
[Date "2018.08.18"]
[Round "1"]
[White "Kozlowski, Thierry"]
[Black "Verhille, Elie"]
[Result "0-1"]
[ECO "A05"]
[WhiteElo "1993"]
[BlackElo "1862"]
[Annotator "NA RC"]
[PlyCount "82"]
[EventDate "2018.08.18"]
[EventType "tourn"]
[EventCountry "FRA"]
[SourceTitle "playchess.com"]
[Source "ChessBase"]
[SourceQuality "1"]
[TimeControl "40/5400+30:1800+30"]

1. Nf3 {[%emt 0:00:00]} Nf6 {[%emt 0:00:00]} 2. c4 {[%emt 0:00:15]} g6 {[%emt 0:00:00]} 3. b3 {[%emt 0:01:05]} Bg7 {[%emt 0:00:12]} 4. Bb2 {[%emt 0:00:05]} O-O {[%emt 0:00:40]} 5. g3 {[%emt 0:00:06]} b6 {[%emt 0:02:04]} 6. Bg2 {[%emt 0:01:06]} Bb7 {[%emt 0:00:24]} 7. O-O {[%emt 0:00:36]} d5 {[%emt 0:06:03]} 8. Na3 {[%emt 0:48:02]} c5 {[%emt 0:08:34]} 9. cxd5 {[%emt 0:06:05]} Bxd5 {[%emt 0:01:47]} 10. Rc1 {[%emt 0:07:10]} Nbd7 {[%emt 0:03:54]} 11. Rc2 {[%emt 0:03:50]} a5 {[%emt 0:12:52]} 12. Nb5 {[%emt 0:03:56]} a4 {[%emt 0:03:44]} 13. bxa4 {[%emt 0:00:34]} Rxa4 {[%emt 0:01:28]} 14. Nc3 {[%emt 0:01:09]} Ra7 {[%emt 0:00:55]} 15. Nxd5 {[%emt 0:00:41]} Nxd5 {[%emt 0:02:56]} 16. Bxg7 {[%emt 0:03:44]} Kxg7 {[%emt 0:00:01]} 17. Qa1+ {[%emt 0:03:45]} Kg8 {[%emt 0:04:10]} 18. d4 {[%emt 0:02:51]} Rc7 {[%emt 0:03:51]} 19. dxc5 {[%emt 0:03:24]} Rxc5 {[%emt 0:04:50]} 20. Rxc5 {[%emt 0:02:43]} bxc5 {[%emt 0:01:19]} 21. Rd1 {[%emt 0:00:13]} N5b6 {[%emt 0:02:23]} 22. Ne5 {[%emt 0:02:11]} Qc7 {[%emt 0:00:20]} 23. Nc6 {[%emt 0:00:10]} Nb8 {[%emt 0:01:24]} 24. Ne5 {[%emt 0:03:58]} N8d7 {[%emt 0:00:36]} 25. Ng4 {[%emt 0:00:37]} h5 {[%emt 0:01:08]} 26. Ne3 {[%emt 0:00:18]} Rc8 {[%emt 0:03:39]} 27. a4 {[%emt 0:00:20]} Ne5 {[%emt 0:01:08]} 28. a5 {[%emt 0:00:43]} Nbc4 {[%emt 0:00:26]} 29. Nd5 {[%emt 0:01:36]} Qa7 {[%emt 0:00:29]} 30. a6 {[%emt 0:02:16]} Nc6 {[%emt 0:01:50]} 31. Qa4 {[%emt 0:01:15]} Nb2 {[%emt 0:01:17]} 32. Qb3 {[%emt 0:00:40]} Nxd1 {[%emt 0:00:19]} 33. Qxd1 {[%emt 0:00:05]} Qxa6 {[%emt 0:00:26]} 34. e3 {[%emt 0:00:42]} Qa7 {[%emt 0:03:30]} 35. g4 {[%emt 0:00:25]} hxg4 {[%emt 0:02:46]} 36. Qxg4 {[%emt 0:00:04]} Rd8 {[%emt 0:01:59]} 37. h4 {[%emt 0:00:20]} Qa1+ {[%emt 0:00:41]} 38. Kh2 {[%emt 0:00:01]} Rxd5 {[%emt 0:00:41]} 39. Bxd5 {[%emt 0:00:59]} Qe5+ {[%emt 0:00:05]} 40. Kh3 {[%emt 0:01:25]} Qxd5 {[%emt 0:00:10]} 41. e4 {[%emt 0:30:01]} Qe6 {[%emt 0:30:42]} 0-1

[Event "FRA-ch Open A-D 2018"]
[Site "Nimes"]
[Date "2018.08.18"]
[Round "1"]
[White "Moullier, Igor"]
[Black "Baudon, Andrew"]
[Result "1/2-1/2"]
[ECO "C42"]
[WhiteElo "1969"]
[BlackElo "1860"]
[Annotator "NA RC"]
[PlyCount "67"]
[EventDate "2018.08.18"]
[EventType "tourn"]
[EventCountry "FRA"]
[SourceTitle "playchess.com"]
[Source "ChessBase"]
[SourceQuality "1"]
[TimeControl "40/5400+30:1800+30"]

1. e4 {[%emt 0:00:00]} e5 {[%emt 0:00:00]} 2. Nf3 {[%emt 0:00:00]} Nf6 {[%emt 0:00:00]} 3. Nxe5 {[%emt 0:00:00]} d6 {[%emt 0:00:00]} 4. Nf3 {[%emt 0:00:03]} Nxe4 {[%emt 0:00:00]} 5. c4 {[%emt 0:00:23]} c6 {[%emt 0:02:23]} 6. d4 {[%emt 0:01:17]} d5 {[%emt 0:00:19]} 7. Nc3 {[%emt 0:01:19]} Bb4 {[%emt 0:04:17]} 8. Qb3 {[%emt 0:02:59]} Qa5 {[%emt 0:03:38]} 9. Bd2 {[%emt 0:03:21]} Nxd2 {[%emt 0:00:59]} 10. Kxd2 {[%emt 0:00:43]} O-O {[%emt 0:01:46]} 11. Rd1 {[%emt 0:06:37]} c5 {[%emt 0:13:07]} 12. cxd5 {[%emt 0:07:13]} cxd4 {[%emt 0:05:30]} 13. Nxd4 {[%emt 0:01:01]} Rd8 {[%emt 0:01:41]} 14. Kc1 {[%emt 0:11:22]} Bxc3 {[%emt 0:12:08]} 15. bxc3 {[%emt 0:03:04]} Nd7 {[%emt 0:05:25]} 16. Be2 {[%emt 0:11:35]} Nc5 {[%emt 0:03:42]} 17. Qb4 {[%emt 0:03:42]} Qxb4 {[%emt 0:09:39]} 18. cxb4 {[%emt 0:00:09]} Ne4 {[%emt 0:00:04]} 19. Rhf1 {[%emt 0:03:38]} a5 {[%emt 0:02:37]} 20. b5 {[%emt 0:03:07]} Nc3 {[%emt 0:09:10]} 21. Rd2 {[%emt 0:00:24]} Bd7 {[%emt 0:04:52]} 22. Kb2 {[%emt 0:02:17]} Rac8 {[%emt 0:04:25]} 23. Bf3 {[%emt 0:02:55]} Bxb5 {[%emt 0:06:12]} 24. Rc1 {[%emt 0:00:56]} Na4+ {[%emt 0:00:37]} 25. Kb1 {[%emt 0:00:13]} Ba6 {[%emt 0:01:25]} 26. Rxc8 {[%emt 0:01:02]} Rxc8 {[%emt 0:00:05]} 27. Nf5 {[%emt 0:01:55]} Kf8 {[%emt 0:00:51]} 28. Rd4 {[%emt 0:01:29]} b5 {[%emt 0:00:50]} 29. h4 {[%emt 0:02:04]} b4 {[%emt 0:01:53]} 30. Ne3 {[%emt 0:04:22]} Nc3+ {[%emt 0:00:25]} 31. Kb2 {[%emt 0:00:32]} Na4+ {[%emt 0:00:08]} 32. Kb1 {[%emt 0:00:11]} Nc3+ {[%emt 0:00:30]} 33. Kb2 {[%emt 0:00:05]} Na4+ {[%emt 0:02:13]} 34. Kb1 {[%emt 0:01:20]} 1/2-1/2

[Event "FRA-ch Open A-D 2018"]
[Site "Nimes"]
[Date "2018.08.18"]
[Round "1"]
[White "Wilfert, Fabrice"]
[Black "Partinico, Jeremy"]
[Result "1-0"]
[ECO "B23"]
[WhiteElo "1862"]
[BlackElo "1990"]
[Annotator "NA RC"]
[PlyCount "99"]
[EventDate "2018.08.18"]
[EventType "tourn"]
[EventCountry "FRA"]
[SourceTitle "playchess.com"]
[Source "ChessBase"]
[SourceQuality "1"]
[TimeControl "40/5400+30:1800+30"]

1. e4 c5 {[%emt 0:00:00]} 2. Nc3 {[%emt 0:00:00]} e6 {[%emt 0:00:04]} 3. f4 {[%emt 0:00:00]} d5 {[%emt 0:01:35]} 4. d3 {[%emt 0:00:45]} Nc6 {[%emt 0:02:38]} 5. Nf3 {[%emt 0:00:33]} g6 {[%emt 0:06:01]} 6. g3 {[%emt 0:02:31]} Bg7 {[%emt 0:00:53]} 7. Bg2 {[%emt 0:00:44]} Nge7 {[%emt 0:02:50]} 8. Bd2 {[%emt 0:14:12] B24: Closed Sicilian: 3 g3 sidelines} (8. O-O O-O 9. Qe2 b6 10. g4 Qd7 11. Qf2 Bb7 12. Bd2 Nd4 13. Ne5 Qc7 14. exd5 exd5 15. Rac1 {½-½ (15) Dembo,Y (2457)-Kulaots,K (2601) Aix les Bains 2011}) 8... O-O {[%emt 0:00:55]} 9. Rb1 {[%emt 0:07:57]} Rb8 {[%emt 0:02:40]} 10. O-O {[%emt 0:02:16]} b5 {[%emt 0:01:48]} 11. Ne2 {[%emt 0:08:46]} a5 {[%emt 0:09:33]} 12. c3 $146 {[%emt 0:05:39]} ({Predecessor:} 12. e5 d4 13. g4 Nd5 14. Ng3 f5 15. gxf5 gxf5 16. Ng5 h6 17. Nh3 {½-½ (26) Taeger,T (2414)-Kerek,C (2190) Eger 1996}) 12... b4 {[%emt 0:10:05]} 13. Be3 {[%emt 0:09:38]} dxe4 {[%emt 0:08:40]} 14. dxe4 {[%emt 0:00:22]} Ba6 {[%emt 0:00:09]} 15. Re1 {[%emt 0:01:16]} bxc3 {[%emt 0:09:49]} 16. bxc3 {[%emt 0:02:15]} Qxd1 {[%emt 0:05:47]} 17. Rbxd1 {[%emt 0:00:10]} Rb2 {[%emt 0:00:44]} 18. Rd2 {[%emt 0:07:38]} Rfb8 {[%emt 0:04:40]} 19. Bf1 {[%emt 0:07:47]} Rxd2 {[%emt 0:05:40]} 20. Bxd2 {[%emt 0:03:31]} Rb2 {[%emt 0:00:22]} 21. Nc1 {[%emt 0:00:12]} Bxf1 {[%emt 0:04:23]} 22. Rxf1 {[%emt 0:03:25]} c4 {[%emt 0:01:31]} 23. Rd1 {[%emt 0:03:02]} Rc2 {[%emt 0:04:49]} 24. Ne1 {[%emt 0:01:31]} Rb2 {[%emt 0:00:01]} 25. Nf3 {[%emt 0:00:52]} Kf8 {[%emt 0:00:31]} 26. e5 {[%emt 0:01:20]} Nd5 {[%emt 0:00:51]} 27. a3 {[%emt 0:01:44]} Ke7 $19 {[%emt 0:00:44]} 28. Ng5 {[%emt 0:00:58]} f6 {[%emt 0:01:42]} 29. exf6+ {[%emt 0:01:05]} Bxf6 {[%emt 0:00:06]} 30. Ne4 {[%emt 0:00:16]} Bg7 {[%emt 0:00:55]} 31. Kf1 {[%emt 0:01:19]} Rc2 {[%emt 0:02:23]} 32. Ne2 {[%emt 0:01:28]} Ra2 {[%emt 0:00:07]} 33. Bc1 {[%emt 0:00:32]} Ra1 {[%emt 0:00:26]} 34. Ke1 {[%emt 0:00:35]} a4 {[%emt 0:00:56]} 35. Kd2 {[%emt 0:04:11]} Na5 {[%emt 0:01:17]} 36. Bb2 {[%emt 0:01:46]} Ra2 {[%emt 0:03:06]} 37. Kc1 {[%emt 0:00:46]} Ne3 {[%emt 0:06:22]} 38. Re1 {[%emt 0:01:28]} Nb3+ {[%emt 0:02:58]} 39. Kb1 {[%emt 0:00:12]} Rxb2+ {[%emt 0:00:20]} 40. Kxb2 {[%emt 0:00:07]} Nd5 {[%emt 0:00:11]} 41. Nc1 {[%emt 0:33:45]} Nc5 {[%emt 0:31:09]} 42. Kc2 {[%emt 0:01:16]} Nb3 {[%emt 0:00:00]} 43. Na2 {[%emt 0:00:00]} h6 {[%emt 0:00:00]} 44. Nb4 {[%emt 0:00:00]} Kd7 {[%emt 0:00:00]} 45. Rd1 {[%emt 0:00:00]} Nd4+ 46. Rxd4 {[%emt 0:00:00]} Bxd4 {[%emt 0:00:00]} 47. cxd4 {[%emt 0:00:00]} Nxb4+ {[%emt 0:00:00]} 48. axb4 {[%emt 0:00:00]} Kc6 {[%emt 0:00:00]} 49. Nc3 {[%emt 0:00:00]} a3 {[%emt 0:00:00]} 50. Kb1 1-0

[Event "FRA-ch Open A-D 2018"]
[Site "Nimes"]
[Date "2018.08.18"]
[Round "1"]
[White "Muzzarelli, Hogan"]
[Black "Lebugle, Philippe"]
[Result "0-1"]
[ECO "D31"]
[WhiteElo "1860"]
[BlackElo "1967"]
[Annotator "NA RC"]
[PlyCount "112"]
[EventDate "2018.08.18"]
[EventType "tourn"]
[EventCountry "FRA"]
[SourceTitle "playchess.com"]
[Source "ChessBase"]
[SourceQuality "1"]
[TimeControl "40/5400+30:1800+30"]

1. d4 {[%emt 0:00:00]} d5 {[%emt 0:00:00]} 2. c4 {[%emt 0:00:00]} e6 {[%emt 0:00:00]} 3. Nc3 {[%emt 0:00:11]} f5 {[%emt 0:05:04]} 4. Nf3 {[%emt 0:03:31]} Nf6 {[%emt 0:00:16]} 5. Bf4 {[%emt 0:03:29]} c6 {[%emt 0:00:43]} 6. e3 {[%emt 0:02:15]} Be7 {[%emt 0:05:35]} 7. c5 {[%emt 0:05:58] A84: Dutch Defence: 2 c4 Miscellaneous} (7. Bd3 O-O 8. h3 Ne4 9. Qb3 Nd7 10. cxd5 cxd5 11. Rc1 a6 12. O-O g5 13. Bh2 Ndf6 14. Rc2 g4 15. Ne5 Bd6 16. Ne2 gxh3 17. gxh3 Ng5 18. Nf4 Bxe5 19. dxe5 Ne8 20. f3 Kh8 21. Kh1 Ng7 22. Rg2 Ne8 23. Qb4 {1-0 (23) Diermair,A (2508)-Fauland,A (2419) Vienna 2018}) 7... O-O {[%emt 0:00:36]} 8. Be2 {[%emt 0:02:46]} Nbd7 $146 {[%emt 0:01:23]} ({Predecessor:} 8... Ne4 9. Qc2 a5 10. Bxb8 Rxb8 11. Na4 f4 12. exf4 Rxf4 13. Bd3 e5 14. dxe5 {0-1 (25) Almeida,H (1793)-De Arruda Filho,N (1953) Cuiaba 2017}) 9. Ng5 {[%emt 0:09:43]} Nb8 {[%emt 0:00:10]} 10. Nf3 {[%emt 0:00:34]} Re8 {[%emt 0:01:03]} 11. O-O {[%emt 0:04:14]} Nbd7 {[%emt 0:01:01]} 12. Qc2 {[%emt 0:12:06]} Nf8 {[%emt 0:04:11]} 13. Ne5 {[%emt 0:03:18]} N6d7 {[%emt 0:00:28]} 14. h3 {[%emt 0:02:39]} Bf6 {[%emt 0:01:54]} 15. b4 {[%emt 0:07:53]} Nxe5 {[%emt 0:23:46]} 16. Bxe5 {[%emt 0:00:15]} Be7 {[%emt 0:07:49]} 17. Qa4 {[%emt 0:09:19]} Bd7 {[%emt 0:02:09]} 18. Rab1 {[%emt 0:02:36]} Ng6 {[%emt 0:07:12]} 19. f4 {[%emt 0:03:13]} Nxe5 {[%emt 0:00:17]} 20. dxe5 {[%emt 0:00:20]} a5 {[%emt 0:02:36]} 21. Kf2 {[%emt 0:07:56]} b5 {[%emt 0:10:13]} 22. Qb3 {[%emt 0:07:38]} axb4 {[%emt 0:00:46]} 23. Qxb4 {[%emt 0:00:20]} Qa5 {[%emt 0:00:07]} 24. Qxa5 {[%emt 0:01:58]} Rxa5 {[%emt 0:00:05]} 25. a4 {[%emt 0:02:22]} Bxc5 {[%emt 0:03:48]} 26. axb5 {[%emt 0:01:03]} d4 {[%emt 0:00:09]} 27. bxc6 {[%emt 0:03:22]} Bxc6 {[%emt 0:00:19]} 28. Nd1 {[%emt 0:01:49]} Be4 {[%emt 0:01:42]} 29. Rb3 {[%emt 0:01:13]} Rd8 {[%emt 0:07:34]} 30. exd4 {[%emt 0:01:51]} Bxd4+ {[%emt 0:04:00]} 31. Kg3 {[%emt 0:00:09]} Bc2 {[%emt 0:02:55]} 32. Rb7 {[%emt 0:00:34]} Be4 {[%emt 0:03:04]} 33. Re7 {[%emt 0:00:08]} Bd5 {[%emt 0:00:17]} 34. Nf2 {[%emt 0:01:06]} Ra2 {[%emt 0:00:52]} 35. Bb5 {[%emt 0:00:42]} Kf8 {[%emt 0:00:27]} 36. Rc7 {[%emt 0:00:23]} Rb8 {[%emt 0:00:13]} 37. Bc4 {[%emt 0:00:48]} Bxc4 {[%emt 0:01:27]} 38. Rxc4 {[%emt 0:00:04]} Rb3+ {[%emt 0:00:08]} 39. Kh2 {[%emt 0:00:47]} Bxf2 {[%emt 0:00:35]} 40. Rc8+ {[%emt 0:00:35]} Kf7 {[%emt 0:00:24]} 41. Rd1 {[%emt 0:30:48]} Bg3+ {[%emt 0:30:11]} 42. Kg1 {[%emt 0:00:06]} Rbb2 {[%emt 0:01:02]} 43. Kf1 {[%emt 0:00:26]} Rf2+ {[%emt 0:00:09]} 44. Kg1 {[%emt 0:00:08]} Rxg2+ {[%emt 0:00:10]} 45. Kh1 {[%emt 0:00:20]} Rh2+ {[%emt 0:00:09]} 46. Kg1 {[%emt 0:00:04]} Rag2+ {[%emt 0:00:06]} (46... Rxh3 $142 47. Rc7+ Kg6 48. Rf1 Bh2+ 49. Kh1 Bxf4+ 50. Kg1 Bh2+ 51. Kh1 Bxe5+ 52. Kg1 Bxc7 53. Rf2 Bb6 54. Kf1 Rxf2+ 55. Kg1 Rd2+ 56. Kf1 Rh1#) 47. Kf1 {[%emt 0:00:08]} Rd2 {[%emt 0:01:25]} (47... Rb2 $142 48. Kg1 Rxh3 49. Rd3 Bf2+ 50. Kf1 Be3 51. Rc7+ Kg6 52. Rxg7+ Kxg7 53. Rd7+ Kg6 54. Rg7+ Kxg7 55. Ke1 Rh1#) 48. Rxd2 {[%emt 0:01:00]} Rxd2 {[%emt 0:00:07]} 49. Rc7+ {[%emt 0:00:06]} Kf8 {[%emt 0:01:13]} 50. Rc8+ {[%emt 0:00:17]} Ke7 {[%emt 0:00:13]} 51. Rh8 {[%emt 0:00:20]} h6 {[%emt 0:00:57]} 52. Rg8 {[%emt 0:00:11]} Kf7 {[%emt 0:00:07]} 53. Rc8 {[%emt 0:00:17]} Bxf4 {[%emt 0:00:15]} 54. Rc7+ {[%emt 0:00:21]} Kf8 {[%emt 0:00:24]} 55. Rc8+ {[%emt 0:00:03]} Ke7 $19 {[%emt 0:00:11]} 56. Rg8 {[%emt 0:00:04]} Bxe5 {[%emt 0:00:10]} 0-1

[Event "FRA-ch Open A-D 2018"]
[Site "Nimes"]
[Date "2018.08.18"]
[Round "1"]
[White "Christophe Hayot, Romain"]
[Black "Courreur, Alexandre"]
[Result "1-0"]
[ECO "B23"]
[WhiteElo "1797"]
[BlackElo "1639"]
[Annotator "NA RC"]
[PlyCount "113"]
[EventDate "2018.08.18"]
[EventType "tourn"]
[EventCountry "FRA"]
[SourceTitle "playchess.com"]
[Source "ChessBase"]
[SourceQuality "1"]
[TimeControl "40/5400+30:1800+30"]

1. e4 {[%emt 0:00:00]} c5 {[%emt 0:00:00]} 2. Nc3 {[%emt 0:00:25]} Nc6 {[%emt 0:00:30]} 3. f4 {[%emt 0:02:40]} e6 {[%emt 0:01:44]} 4. Nf3 {[%emt 0:04:04]} g6 {[%emt 0:04:01]} 5. Be2 {[%emt 0:05:53]} Bg7 {[%emt 0:00:58]} 6. O-O {[%emt 0:00:20]} Nge7 {[%emt 0:01:27]} 7. Kh1 {[%emt 0:00:33]} O-O {[%emt 0:00:51]} 8. d3 {[%emt 0:03:00]} d5 {[%emt 0:03:17]} 9. e5 {[%emt 0:01:55]} Nf5 {[%emt 0:06:23]} 10. Qe1 {[%emt 0:00:26]} a6 {[%emt 0:01:48]} 11. Bd2 {[%emt 0:06:52]} b5 {[%emt 0:01:46]} 12. Qf2 {[%emt 0:00:45]} Qe7 {[%emt 0:04:10]} 13. Bd1 {[%emt 0:03:25]} Bb7 {[%emt 0:00:36]} 14. Ne2 {[%emt 0:00:57]} b4 {[%emt 0:06:58]} 15. Ng3 {[%emt 0:02:25]} Nh6 {[%emt 0:03:32]} 16. h3 {[%emt 0:00:31]} a5 {[%emt 0:01:33]} 17. c3 {[%emt 0:01:01]} a4 {[%emt 0:01:58]} 18. cxb4 {[%emt 0:01:03]} Nxb4 {[%emt 0:02:40]} 19. Bxb4 {[%emt 0:02:54]} cxb4 {[%emt 0:00:14]} 20. Rc1 {[%emt 0:00:34]} Rfc8 {[%emt 0:02:26]} 21. Be2 {[%emt 0:01:47]} Rxc1 {[%emt 0:03:50]} 22. Rxc1 {[%emt 0:00:09]} Rc8 {[%emt 0:01:10]} 23. Rxc8+ {[%emt 0:00:47]} Bxc8 {[%emt 0:00:07]} 24. Qb6 {[%emt 0:00:15]} f6 {[%emt 0:05:46]} 25. d4 {[%emt 0:00:14]} Nf7 {[%emt 0:08:53]} 26. Bb5 {[%emt 0:05:33]} a3 {[%emt 0:01:19]} 27. b3 {[%emt 0:03:12]} Qb7 {[%emt 0:05:33]} 28. Qa5 {[%emt 0:02:03]} fxe5 {[%emt 0:04:36]} 29. fxe5 {[%emt 0:02:21]} Bf8 {[%emt 0:02:03]} 30. Be8 {[%emt 0:00:40]} Be7 {[%emt 0:02:35]} 31. h4 {[%emt 0:02:31]} Nd8 {[%emt 0:04:06]} 32. Qb5 {[%emt 0:00:36]} Qxb5 {[%emt 0:01:23]} 33. Bxb5 {[%emt 0:00:09]} Kg7 {[%emt 0:01:49]} 34. Nf1 {[%emt 0:00:54]} Bb7 {[%emt 0:03:10]} 35. Kg1 {[%emt 0:01:13]} Nc6 {[%emt 0:01:34]} 36. N1d2 {[%emt 0:04:42]} h6 {[%emt 0:03:19]} 37. Kf2 {[%emt 0:02:37]} Kf7 {[%emt 0:02:52]} 38. g4 {[%emt 0:06:21]} Bd8 {[%emt 0:01:46]} 39. Ke3 {[%emt 0:00:50]} Bb6 {[%emt 0:00:43]} 40. Bd3 {[%emt 0:05:54]} Ne7 {[%emt 0:02:21]} 41. Nf1 {[%emt 0:31:54]} Nc6 {[%emt 0:30:56]} 42. Ng3 {[%emt 0:01:30]} Na5 {[%emt 0:00:53]} 43. Nd2 {[%emt 0:01:12]} Nc6 {[%emt 0:00:15]} 44. Nf3 {[%emt 0:00:58]} Na5 {[%emt 0:00:08]} 45. Bb1 {[%emt 0:01:59]} Ba6 {[%emt 0:01:50]} 46. Ne2 {[%emt 0:04:42]} Nc6 {[%emt 0:00:50]} 47. Nf4 {[%emt 0:00:10]} Bf1 {[%emt 0:00:00]} 48. Bxg6+ {[%emt 0:00:00]} Ke7 {[%emt 0:00:00]} 49. g5 {[%emt 0:00:00]} hxg5 {[%emt 0:00:00]} 50. hxg5 {[%emt 0:00:00]} Na5 {[%emt 0:00:00]} 51. Bb1 {[%emt 0:00:00]} Nc6 {[%emt 0:00:00]} 52. g6 {[%emt 0:00:00]} Nd8 {[%emt 0:00:00]} 53. g7 {[%emt 0:00:00]} Kf7 {[%emt 0:00:00]} 54. Nh5 {[%emt 0:00:00]} Kg8 {[%emt 0:00:00]} 55. Ng5 {[%emt 0:00:00]} Bxd4+ {[%emt 0:00:00]} 56. Kxd4 {[%emt 0:00:00]} Nc6+ {[%emt 0:00:00]} 57. Kc5 {[%emt 0:00:00]} 1-0

[Event "FRA-ch Open A-D 2018"]
[Site "Nimes"]
[Date "2018.08.18"]
[Round "1"]
[White "Salah, Samir"]
[Black "Fossella, Manuel"]
[Result "1/2-1/2"]
[ECO "C68"]
[WhiteElo "1759"]
[BlackElo "1638"]
[Annotator "NA RC"]
[PlyCount "48"]
[EventDate "2018.08.18"]
[EventType "tourn"]
[EventCountry "FRA"]
[SourceTitle "playchess.com"]
[Source "ChessBase"]
[SourceQuality "1"]
[TimeControl "40/5400+30:1800+30"]

1. e4 {[%emt 0:00:00]} e5 {[%emt 0:00:05]} 2. Nf3 {[%emt 0:00:50]} Nc6 {[%emt 0:00:37]} 3. Bb5 {[%emt 0:01:25]} a6 {[%emt 0:02:08]} 4. Bxc6 {[%emt 0:02:02]} dxc6 {[%emt 0:00:15]} 5. O-O Bg4 6. h3 Bxf3 7. Qxf3 {[%emt 0:09:45]} Qf6 {[%emt 0:03:17]} 8. Qb3 {[%emt 0:02:04]} Rb8 {[%emt 0:01:28]} 9. d3 {[%emt 0:00:49]} Bc5 {[%emt 0:00:25]} 10. Be3 {[%emt 0:01:10]} Bxe3 {[%emt 0:07:26]} 11. fxe3 Qe7 12. Nd2 {[%emt 0:05:34]} Nf6 {[%emt 0:00:47]} 13. Qc3 {[%emt 0:01:32]} O-O {[%emt 0:00:40]} 14. Nc4 {[%emt 0:02:00]} Rfe8 {[%emt 0:03:18]} 15. Rf5 {[%emt 0:10:33]} Nd7 {[%emt 0:01:47]} 16. Raf1 {[%emt 0:01:55]} f6 {[%emt 0:00:26]} 17. Nd2 {[%emt 0:06:03]} Qc5 {[%emt 0:02:09]} 18. Qb3+ {[%emt 0:01:40]} Kh8 {[%emt 0:00:12]} 19. R5f3 {[%emt 0:08:07]} Qe7 {[%emt 0:04:41]} 20. R1f2 {[%emt 0:11:55]} Nc5 {[%emt 0:04:12]} 21. Qc3 {[%emt 0:04:40]} Na4 {[%emt 0:00:53]} 22. Qb3 {[%emt 0:00:25]} Nc5 {[%emt 0:00:58]} 23. Qc3 {[%emt 0:03:54]} Na4 {[%emt 0:00:37]} 24. Qb3 {[%emt 0:01:05]} g6 1/2-1/2

[Event "FRA-ch Open A-D 2018"]
[Site "Nimes"]
[Date "2018.08.18"]
[Round "1"]
[White "Cregut, Marian"]
[Black "Filipic, Pierre"]
[Result "1-0"]
[ECO "C65"]
[WhiteElo "1638"]
[BlackElo "1779"]
[Annotator "NA RC"]
[PlyCount "141"]
[EventDate "2018.08.18"]
[EventType "tourn"]
[EventCountry "FRA"]
[SourceTitle "playchess.com"]
[Source "ChessBase"]
[SourceQuality "1"]
[TimeControl "40/5400+30:1800+30"]

1. e4 {[%emt 0:00:00]} e5 {[%emt 0:00:00]} 2. Nf3 {[%emt 0:00:00]} Nc6 {[%emt 0:00:00]} 3. Bb5 {[%emt 0:00:04]} Nf6 {[%emt 0:01:59]} 4. d3 {[%emt 0:01:00]} d6 {[%emt 0:00:33]} 5. h3 {[%emt 0:02:48]} h6 {[%emt 0:00:21]} 6. c3 {[%emt 0:03:37]} Bd7 {[%emt 0:02:10]} 7. Ba4 {[%emt 0:03:20]} Be7 {[%emt 0:08:11]} 8. Nbd2 {[%emt 0:05:39]} a6 {[%emt 0:00:15]} 9. O-O {[%emt 0:13:21]} b5 {[%emt 0:02:35]} 10. Bb3 {[%emt 0:02:33]} Na5 {[%emt 0:01:34]} 11. Bc2 {[%emt 0:00:14]} c5 {[%emt 0:00:07]} 12. d4 {[%emt 0:09:13]} exd4 {[%emt 0:01:10]} 13. cxd4 {[%emt 0:02:12]} c4 {[%emt 0:00:30]} 14. e5 {[%emt 0:09:56]} dxe5 {[%emt 0:02:25]} 15. dxe5 {[%emt 0:01:25]} Nd5 {[%emt 0:00:57]} 16. Nxc4 {[%emt 0:11:30]} Nb4 {[%emt 0:17:22]} 17. Nd6+ {[%emt 0:02:00]} Kf8 {[%emt 0:00:02]} 18. Be4 {[%emt 0:02:34]} Bc6 {[%emt 0:03:00]} 19. Bf4 {[%emt 0:10:39]} Bxe4 {[%emt 0:04:28]} 20. Nxe4 {[%emt 0:00:14]} Nd3 {[%emt 0:00:26]} 21. Bc1 {[%emt 0:02:31]} Nc4 {[%emt 0:00:32]} 22. b3 {[%emt 0:03:51]} Ncxe5 {[%emt 0:00:29]} 23. Nxe5 {[%emt 0:02:01]} Nxe5 {[%emt 0:00:10]} 24. Be3 {[%emt 0:04:03]} f5 {[%emt 0:05:45]} 25. Nc3 {[%emt 0:00:39]} Qxd1 {[%emt 0:02:40]} 26. Rfxd1 {[%emt 0:00:26]} Rc8 {[%emt 0:02:44]} 27. Rac1 {[%emt 0:00:47]} Ba3 {[%emt 0:00:42]} 28. Rc2 {[%emt 0:00:33]} Kf7 {[%emt 0:05:41]} 29. Bd4 {[%emt 0:03:34]} Rhd8 {[%emt 0:00:49]} 30. Rcd2 {[%emt 0:00:36]} Nc6 {[%emt 0:05:47]} 31. Ne2 {[%emt 0:00:26]} Nxd4 {[%emt 0:04:38]} 32. Nxd4 {[%emt 0:00:01]} Rc1 {[%emt 0:02:01]} 33. Rxc1 {[%emt 0:00:56]} Bxc1 {[%emt 0:00:08]} 34. Rc2 {[%emt 0:00:24]} Bf4 {[%emt 0:00:44]} 35. g3 {[%emt 0:00:32]} Rxd4 {[%emt 0:00:36]} 36. gxf4 {[%emt 0:00:01]} Ke6 {[%emt 0:01:13]} 37. Kg2 {[%emt 0:00:59]} a5 {[%emt 0:02:29]} 38. Rc5 {[%emt 0:00:28]} Rd5 {[%emt 0:00:09]} 39. Rc6+ {[%emt 0:00:13]} Kf7 {[%emt 0:02:36]} 40. Ra6 {[%emt 0:00:23]} b4 {[%emt 0:00:09]} 41. Kf3 {[%emt 0:30:38]} g6 {[%emt 0:34:20]} 42. Ke3 {[%emt 0:00:31]} Kg7 {[%emt 0:01:43]} 43. Ke2 {[%emt 0:00:42]} g5 {[%emt 0:00:53]} 44. Ke3 {[%emt 0:00:32]} g4 {[%emt 0:00:20]} 45. hxg4 {[%emt 0:00:06]} fxg4 {[%emt 0:00:08]} 46. Ke4 {[%emt 0:00:16]} Rb5 {[%emt 0:00:21]} 47. f5 {[%emt 0:00:10]} h5 {[%emt 0:01:03]} 48. Kf4 {[%emt 0:00:06]} Rc5 {[%emt 0:01:06]} 49. Kg5 {[%emt 0:00:20]} Re5 {[%emt 0:00:38]} 50. Ra7+ {[%emt 0:01:31]} Kf8 {[%emt 0:01:33]} 51. Kf6 {[%emt 0:00:13]} Re8 {[%emt 0:00:07]} 52. Rxa5 {[%emt 0:00:15]} h4 {[%emt 0:00:22]} 53. Ra7 {[%emt 0:01:20]} h3 {[%emt 0:00:03]} 54. Rh7 {[%emt 0:00:19]} Kg8 {[%emt 0:00:04]} 55. Rh4 {[%emt 0:01:16]} Re4 {[%emt 0:00:45]} 56. Rh5 {[%emt 0:00:47]} Re2 {[%emt 0:01:09]} 57. Rg5+ {[%emt 0:00:11]} Kf8 {[%emt 0:00:10]} 58. Rxg4 {[%emt 0:00:24]} Rxf2 {[%emt 0:00:07]} 59. Rxb4 {[%emt 0:00:22]} Ke8 {[%emt 0:00:09]} 60. a4 {[%emt 0:00:34]} Rb2 {[%emt 0:00:22]} 61. Rb7 {[%emt 0:00:57]} h2 {[%emt 0:00:52]} 62. Rh7 {[%emt 0:00:06]} Rxb3 {[%emt 0:00:37]} 63. Rxh2 {[%emt 0:00:06]} Rb6+ {[%emt 0:00:05]} 64. Ke5 {[%emt 0:00:30]} Ra6 {[%emt 0:00:02]} 65. Ra2 {[%emt 0:00:01]} Ra5+ {[%emt 0:00:45]} 66. Kf6 {[%emt 0:00:22]} Ra6+ {[%emt 0:00:18]} 67. Kg7 {[%emt 0:00:10]} Ra7+ {[%emt 0:00:50]} 68. Kg6 {[%emt 0:00:20]} Ra6+ {[%emt 0:00:23]} 69. f6 {[%emt 0:00:02]} Kd7 {[%emt 0:00:13]} 70. Kg7 {[%emt 0:00:18]} Ke6 {[%emt 0:00:10]} 71. f7 {[%emt 0:00:31]} 1-0